[Event "Late-Titled-Tuesday-Blitz-July-09-2024"]
[Site "Chess.com"]
[Date "2024.07.09"]
[Round "3"]
[White "KNVB"]
[Black "Kombinator01"]
[Result "1-0"]
[WhiteElo "2672"]
[BlackElo "2450"]
[TimeControl "180+1"]
[EndTime "14:28:53 PDT"]
[Termination "KNVB won by resignation"]

1. d4 {[%clk 0:03:00.9]} 1... d5 {[%clk 0:02:56.1]} 2. Bf4 {[%clk 0:03:01]} 2...
Nf6 {[%clk 0:02:55.6]} 3. e3 {[%clk 0:03:00.9]} 3... c5 {[%clk 0:02:46.7]} 4. c3
{[%clk 0:03:01.3]} 4... Nc6 {[%clk 0:02:46.2]} 5. Nd2 {[%clk 0:03:01.7]} 5...
Qb6 {[%clk 0:02:44.4]} 6. Qb3 {[%clk 0:03:02]} 6... c4 {[%clk 0:02:43.7]} 7. Qc2
{[%clk 0:03:02.4]} 7... g6 {[%clk 0:02:40.7]} 8. h3 {[%clk 0:03:03.1]} 8... Bf5
{[%clk 0:02:40.8]} 9. Qc1 {[%clk 0:03:03.8]} 9... h5 {[%clk 0:02:36.9]} 10. Ngf3
{[%clk 0:03:04.2]} 10... Bg7 {[%clk 0:02:36.8]} 11. Be2 {[%clk 0:03:04.9]} 11...
Ne4 {[%clk 0:02:36.8]} 12. O-O {[%clk 0:03:05.8]} 12... O-O {[%clk 0:02:35.7]}
13. Nxe4 {[%clk 0:03:02.2]} 13... Bxe4 {[%clk 0:02:35.4]} 14. Nd2 {[%clk
0:02:52.8]} 14... Bf5 {[%clk 0:02:28.3]} 15. e4 {[%clk 0:02:50]} 15... Bxe4
{[%clk 0:02:15.1]} 16. Nxe4 {[%clk 0:02:47]} 16... dxe4 {[%clk 0:02:16]} 17.
Bxc4 {[%clk 0:02:47.8]} 17... e5 {[%clk 0:02:16.1]} 18. dxe5 {[%clk 0:02:46.9]}
18... Nxe5 {[%clk 0:02:16.7]} 19. Bxe5 {[%clk 0:02:46.5]} 19... Bxe5 {[%clk
0:02:17.6]} 20. Re1 {[%clk 0:02:32]} 20... Rfe8 {[%clk 0:02:08.5]} 21. Bd5
{[%clk 0:02:23.1]} 21... Bc7 {[%clk 0:01:39.9]} 22. Bxe4 {[%clk 0:00:22.6]}
22... Qd6 {[%clk 0:01:37.1]} 23. f4 {[%clk 0:00:06.1]} 23... Qf6 {[%clk
0:01:20.6]} 24. Bxb7 {[%clk 0:00:02.7]} 24... Qb6+ {[%clk 0:01:19.5]} 25. Kh1
{[%clk 0:00:03.4]} 25... Qxb7 {[%clk 0:01:19.3]} 26. Qd2 {[%clk 0:00:03.5]}
26... Rad8 {[%clk 0:01:18.6]} 27. Rxe8+ {[%clk 0:00:03.1]} 27... Rxe8 {[%clk
0:01:18.4]} 28. f5 {[%clk 0:00:03.6]} 28... Qe4 {[%clk 0:01:11.1]} 29. fxg6
{[%clk 0:00:01.9]} 29... fxg6 {[%clk 0:01:09.2]} 30. Rf1 {[%clk 0:00:01.1]}
30... Qe5 {[%clk 0:01:07.4]} 31. g3 {[%clk 0:00:01.7]} 31... Qe4+ {[%clk
0:01:02.9]} 32. Qg2 {[%clk 0:00:01.8]} 32... Qxg2+ {[%clk 0:01:02.4]} 33. Kxg2
{[%clk 0:00:02.7]} 33... Re2+ {[%clk 0:01:00]} 34. Rf2 {[%clk 0:00:03.2]} 34...
Rxf2+ {[%clk 0:00:59.6]} 35. Kxf2 {[%clk 0:00:04.1]} 35... Kf7 {[%clk
0:00:59.9]} 36. Kf3 {[%clk 0:00:03.1]} 36... Kf6 {[%clk 0:00:59.9]} 37. g4
{[%clk 0:00:01.9]} 37... h4 {[%clk 0:00:58.4]} 38. Ke4 {[%clk 0:00:01.9]} 38...
Ke6 {[%clk 0:00:57.3]} 39. c4 {[%clk 0:00:01.1]} 39... Bd6 {[%clk 0:00:53.8]}
40. b3 {[%clk 0:00:01.6]} 40... a5 {[%clk 0:00:53.8]} 41. Kd4 {[%clk 0:00:01.7]}
41... Bb4 {[%clk 0:00:53.3]} 42. c5 {[%clk 0:00:01.8]} 42... g5 {[%clk
0:00:48.7]} 43. Kc4 {[%clk 0:00:01.8]} 43... Ke5 {[%clk 0:00:44.8]} 44. Kb5
{[%clk 0:00:02]} 44... Kf4 {[%clk 0:00:43.1]} 45. c6 {[%clk 0:00:01.7]} 45...
Bd6 {[%clk 0:00:43]} 46. Kxa5 {[%clk 0:00:02.2]} 46... Kg3 {[%clk 0:00:42.6]}
47. b4 {[%clk 0:00:02.2]} 47... Kxh3 {[%clk 0:00:41.7]} 48. b5 {[%clk
0:00:02.9]} 48... Kxg4 {[%clk 0:00:41.2]} 49. b6 {[%clk 0:00:03.7]} 49... h3
{[%clk 0:00:41.3]} 50. c7 {[%clk 0:00:04.6]} 50... h2 {[%clk 0:00:38.7]} 51.
c8=Q+ {[%clk 0:00:05.5]} 51... Kg3 {[%clk 0:00:38]} 52. Qc6 {[%clk 0:00:05.5]}
52... Bf4 {[%clk 0:00:33.8]} 53. Kb5 {[%clk 0:00:02.6]} 53... g4 {[%clk
0:00:32.5]} 54. Qe4 {[%clk 0:00:01.9]} 54... Kh3 {[%clk 0:00:31]} 55. Qxf4
{[%clk 0:00:01.4]} 55... h1=Q {[%clk 0:00:31]} 56. Qh6+ {[%clk 0:00:02.2]} 56...
Kg2 {[%clk 0:00:31.5]} 57. Qxh1+ {[%clk 0:00:03.1]} 57... Kxh1 {[%clk
0:00:32.4]} 58. b7 {[%clk 0:00:03.9]} 58... g3 {[%clk 0:00:33.3]} 59. b8=Q
{[%clk 0:00:04.8]} 59... g2 {[%clk 0:00:34.2]} 60. Qh8+ {[%clk 0:00:05.1]} 60...
Kg1 {[%clk 0:00:34]} 61. a4 {[%clk 0:00:06]} 61... Kf1 {[%clk 0:00:34.4]} 62.
Qf6+ {[%clk 0:00:06.7]} 62... Ke1 {[%clk 0:00:34.6]} 63. Qd4 {[%clk 0:00:06.1]}
63... Ke2 {[%clk 0:00:34.4]} 64. Qg1 {[%clk 0:00:06.2]} 1-0

[Event "Late-Titled-Tuesday-Blitz-July-09-2024"]
[Site "Chess.com"]
[Date "2024.07.09"]
[Round "3"]
[White "Pitomina"]
[Black "urano56"]
[Result "0-1"]
[WhiteElo "2597"]
[BlackElo "2425"]
[TimeControl "180+1"]
[EndTime "14:28:55 PDT"]
[Termination "urano56 won by resignation"]

1. d4 {[%clk 0:03:00.2]} 1... d5 {[%clk 0:02:56.7]} 2. Nc3 {[%clk 0:02:59.8]}
2... c5 {[%clk 0:02:52.5]} 3. e4 {[%clk 0:02:59.4]} 3... dxe4 {[%clk 0:02:47.7]}
4. d5 {[%clk 0:02:58.9]} 4... Nf6 {[%clk 0:02:45.2]} 5. Bf4 {[%clk 0:02:58.1]}
5... a6 {[%clk 0:02:43.5]} 6. Qe2 {[%clk 0:02:27]} 6... Qa5 {[%clk 0:02:36]} 7.
O-O-O {[%clk 0:02:25.5]} 7... Bf5 {[%clk 0:02:22.4]} 8. h3 {[%clk 0:02:17.6]}
8... Bg6 {[%clk 0:02:20.4]} 9. f3 {[%clk 0:02:14.4]} 9... exf3 {[%clk
0:02:04.9]} 10. Nxf3 {[%clk 0:02:15.3]} 10... Nbd7 {[%clk 0:02:05.5]} 11. Ne5
{[%clk 0:02:06]} 11... Nxe5 {[%clk 0:01:56.9]} 12. Qxe5 {[%clk 0:02:06.9]} 12...
Nd7 {[%clk 0:01:52.1]} 13. Qe3 {[%clk 0:02:06.5]} 13... O-O-O {[%clk 0:01:47.8]}
14. Be2 {[%clk 0:01:58.9]} 14... h5 {[%clk 0:01:44.5]} 15. Rhe1 {[%clk
0:01:55.3]} 15... Bf5 {[%clk 0:01:28.5]} 16. g4 {[%clk 0:01:53.4]} 16... hxg4
{[%clk 0:01:28]} 17. hxg4 {[%clk 0:01:54.3]} 17... Bg6 {[%clk 0:01:28.5]} 18.
Bf3 {[%clk 0:01:54]} 18... Nb6 {[%clk 0:01:23.6]} 19. Qe5 {[%clk 0:01:52.8]}
19... Nd7 {[%clk 0:01:22]} 20. Qe3 {[%clk 0:01:50.1]} 20... Rh3 {[%clk
0:01:21.1]} 21. g5 {[%clk 0:01:42.3]} 21... Bf5 {[%clk 0:01:19.5]} 22. Qf2
{[%clk 0:01:38.5]} 22... g6 {[%clk 0:01:10.7]} 23. d6 {[%clk 0:01:22.1]} 23...
exd6 {[%clk 0:01:03.1]} 24. Qg2 {[%clk 0:01:20.2]} 24... Rxf3 {[%clk 0:00:52.5]}
25. Qxf3 {[%clk 0:01:19.8]} 25... Bg7 {[%clk 0:00:47.8]} 26. Rxd6 {[%clk
0:01:18.4]} 26... Rh8 {[%clk 0:00:39.2]} 27. a3 {[%clk 0:01:02.5]} 27... Be6
{[%clk 0:00:30.6]} 28. Bd2 {[%clk 0:00:34.3]} 28... Qc7 {[%clk 0:00:29.7]} 29.
Rd3 {[%clk 0:00:29.6]} 29... Ne5 {[%clk 0:00:28.3]} 30. Qe4 {[%clk 0:00:27.8]}
30... Bf5 {[%clk 0:00:27.1]} 31. Qd5 {[%clk 0:00:19.9]} 31... Nxd3+ {[%clk
0:00:23.2]} 32. cxd3 {[%clk 0:00:20.8]} 32... Rd8 {[%clk 0:00:22.9]} 33. Qc4
{[%clk 0:00:16.8]} 33... Bxd3 {[%clk 0:00:22.7]} 34. Qg4+ {[%clk 0:00:13.8]}
34... Bf5 {[%clk 0:00:22]} 35. Qf3 {[%clk 0:00:14.1]} 35... Qc6 {[%clk
0:00:15.6]} 36. Qf4 {[%clk 0:00:13.6]} 36... Rd4 {[%clk 0:00:12.4]} 37. Qe3
{[%clk 0:00:12.3]} 37... b5 {[%clk 0:00:11.8]} 38. Qe8+ {[%clk 0:00:08.8]} 38...
Qxe8 {[%clk 0:00:11.3]} 39. Rxe8+ {[%clk 0:00:09.7]} 39... Kd7 {[%clk 0:00:12]}
40. Ra8 {[%clk 0:00:09.1]} 40... b4 {[%clk 0:00:11.4]} 41. Ra7+ {[%clk 0:00:10]}
41... Kc6 {[%clk 0:00:10.9]} 42. axb4 {[%clk 0:00:08.7]} 42... cxb4 {[%clk
0:00:11.1]} 43. Na4 {[%clk 0:00:09.1]} 43... Rc4+ {[%clk 0:00:11.3]} 44. Kd1
{[%clk 0:00:08.7]} 44... Bc2+ {[%clk 0:00:11.9]} 45. Ke2 {[%clk 0:00:09.1]}
45... Bxa4 {[%clk 0:00:12.8]} 46. Rxa6+ {[%clk 0:00:09.3]} 46... Kb5 {[%clk
0:00:12.8]} 47. Ra7 {[%clk 0:00:09.9]} 47... Bxb2 {[%clk 0:00:12.5]} 48. Rxf7
{[%clk 0:00:09.6]} 48... Re4+ {[%clk 0:00:12.5]} 49. Kd3 {[%clk 0:00:09.6]}
49... Rg4 {[%clk 0:00:12.9]} 0-1

[Event "Late-Titled-Tuesday-Blitz-July-09-2024"]
[Site "Chess.com"]
[Date "2024.07.09"]
[Round "3"]
[White "LidongW"]
[Black "Proteuo"]
[Result "1-0"]
[WhiteElo "2293"]
[BlackElo "2448"]
[TimeControl "180+1"]
[EndTime "14:28:56 PDT"]
[Termination "LidongW won on time"]

1. e4 {[%clk 0:03:00.9]} 1... e5 {[%clk 0:02:58.9]} 2. Nf3 {[%clk 0:03:00.4]}
2... Nc6 {[%clk 0:02:55]} 3. Bc4 {[%clk 0:03:00.5]} 3... Nf6 {[%clk 0:02:50.6]}
4. d3 {[%clk 0:03:00.3]} 4... Be7 {[%clk 0:02:49.4]} 5. O-O {[%clk 0:02:59.3]}
5... d6 {[%clk 0:02:48.3]} 6. c3 {[%clk 0:02:56.2]} 6... O-O {[%clk 0:02:47.8]}
7. Re1 {[%clk 0:02:56.4]} 7... h6 {[%clk 0:02:46.9]} 8. Nbd2 {[%clk 0:02:51.1]}
8... a6 {[%clk 0:02:46.8]} 9. Bb3 {[%clk 0:02:49.8]} 9... Nh7 {[%clk 0:02:45.8]}
10. Nf1 {[%clk 0:02:48.7]} 10... Be6 {[%clk 0:02:45.7]} 11. Bc2 {[%clk
0:02:47.8]} 11... f5 {[%clk 0:02:45.4]} 12. exf5 {[%clk 0:02:42.3]} 12... Bxf5
{[%clk 0:02:44.8]} 13. Ne3 {[%clk 0:02:37.8]} 13... Bg6 {[%clk 0:02:43.4]} 14.
Nd2 {[%clk 0:01:58.5]} 14... Kh8 {[%clk 0:02:36.9]} 15. Ne4 {[%clk 0:01:48.3]}
15... d5 {[%clk 0:02:31.8]} 16. Ng3 {[%clk 0:01:47.6]} 16... d4 {[%clk
0:02:27.7]} 17. Ng4 {[%clk 0:01:41.7]} 17... Bd6 {[%clk 0:02:19]} 18. f3 {[%clk
0:01:23.6]} 18... Ng5 {[%clk 0:02:02.9]} 19. c4 {[%clk 0:01:20.7]} 19... Qd7
{[%clk 0:01:43.3]} 20. Ba4 {[%clk 0:01:16.7]} 20... Rae8 {[%clk 0:01:39.8]} 21.
Nf2 {[%clk 0:01:14.4]} 21... Ne6 {[%clk 0:01:33.2]} 22. Bxc6 {[%clk 0:01:11]}
22... Qxc6 {[%clk 0:01:29.1]} 23. a3 {[%clk 0:01:01.3]} 23... Nf4 {[%clk
0:01:27.8]} 24. Nfe4 {[%clk 0:00:56.9]} 24... b6 {[%clk 0:01:23.9]} 25. b4
{[%clk 0:00:56.2]} 25... Rf7 {[%clk 0:01:11.4]} 26. Bxf4 {[%clk 0:00:55.7]}
26... Rxf4 {[%clk 0:01:07.6]} 27. Qe2 {[%clk 0:00:53.5]} 27... Ref8 {[%clk
0:01:06.3]} 28. Rec1 {[%clk 0:00:50]} 28... Be7 {[%clk 0:01:05.8]} 29. Nd2
{[%clk 0:00:41.3]} 29... h5 {[%clk 0:01:03.1]} 30. Nge4 {[%clk 0:00:41]} 30...
h4 {[%clk 0:00:59.2]} 31. h3 {[%clk 0:00:41.3]} 31... Bh5 {[%clk 0:00:52.4]} 32.
c5 {[%clk 0:00:36.2]} 32... b5 {[%clk 0:00:51.2]} 33. a4 {[%clk 0:00:35.9]}
33... Qg6 {[%clk 0:00:50.2]} 34. Kh1 {[%clk 0:00:35.1]} 34... Qe6 {[%clk
0:00:36.1]} 35. Kh2 {[%clk 0:00:29.8]} 35... g5 {[%clk 0:00:34.5]} 36. axb5
{[%clk 0:00:28.9]} 36... axb5 {[%clk 0:00:34]} 37. Ra7 {[%clk 0:00:28.8]} 37...
Bd8 {[%clk 0:00:31.6]} 38. Rca1 {[%clk 0:00:27.6]} 38... Rg8 {[%clk 0:00:26.6]}
39. R1a6 {[%clk 0:00:27]} 39... c6 {[%clk 0:00:17]} 40. Rb7 {[%clk 0:00:21.6]}
40... g4 {[%clk 0:00:13.9]} 41. fxg4 {[%clk 0:00:20.3]} 41... Bxg4 {[%clk
0:00:14]} 42. hxg4 {[%clk 0:00:19.1]} 42... Rfxg4 {[%clk 0:00:14.2]} 43. Raa7
{[%clk 0:00:18.3]} 43... Qg6 {[%clk 0:00:10.4]} 44. Rh7+ {[%clk 0:00:14.1]}
44... Qxh7 {[%clk 0:00:10.6]} 45. Rxh7+ {[%clk 0:00:15]} 45... Kxh7 {[%clk
0:00:11.2]} 46. Nf3 {[%clk 0:00:12.2]} 46... Be7 {[%clk 0:00:08.7]} 47. Nxe5
{[%clk 0:00:11.6]} 47... Rxg2+ {[%clk 0:00:03]} 48. Qxg2 {[%clk 0:00:12.5]}
48... Rxg2+ {[%clk 0:00:03.3]} 49. Kxg2 {[%clk 0:00:13.4]} 49... Kh6 {[%clk
0:00:02.4]} 50. Nxc6 {[%clk 0:00:13.8]} 50... Bf8 {[%clk 0:00:01.9]} 51. Na7
{[%clk 0:00:13.9]} 1-0

[Event "Late-Titled-Tuesday-Blitz-July-09-2024"]
[Site "Chess.com"]
[Date "2024.07.09"]
[Round "3"]
[White "boguszp"]
[Black "norwaytoadog"]
[Result "1/2-1/2"]
[WhiteElo "1967"]
[BlackElo "2332"]
[TimeControl "180+1"]
[EndTime "14:29:01 PDT"]
[Termination "Game drawn by repetition"]

1. d4 {[%clk 0:03:00.9]} 1... Nf6 {[%clk 0:02:58.8]} 2. Nf3 {[%clk 0:03:01]}
2... e6 {[%clk 0:02:59.2]} 3. Bf4 {[%clk 0:03:00.6]} 3... d5 {[%clk 0:02:58.5]}
4. e3 {[%clk 0:02:59.3]} 4... c5 {[%clk 0:02:59]} 5. Be2 {[%clk 0:02:57.3]} 5...
Nc6 {[%clk 0:02:59.5]} 6. O-O {[%clk 0:02:56.8]} 6... Bd6 {[%clk 0:02:57.2]} 7.
Ne5 {[%clk 0:02:54.8]} 7... Qc7 {[%clk 0:02:55.2]} 8. Nxc6 {[%clk 0:02:44]} 8...
bxc6 {[%clk 0:02:54.1]} 9. Bxd6 {[%clk 0:02:34.8]} 9... Qxd6 {[%clk 0:02:55]}
10. dxc5 {[%clk 0:02:28.2]} 10... Qxc5 {[%clk 0:02:54.7]} 11. Qd4 {[%clk
0:02:24.3]} 11... Qd6 {[%clk 0:02:46.6]} 12. c4 {[%clk 0:02:16.7]} 12... e5
{[%clk 0:02:38.5]} 13. Qd2 {[%clk 0:02:14.2]} 13... O-O {[%clk 0:02:35.1]} 14.
Rd1 {[%clk 0:02:11]} 14... Be6 {[%clk 0:02:27]} 15. Nc3 {[%clk 0:02:09.7]} 15...
Rad8 {[%clk 0:02:20.9]} 16. cxd5 {[%clk 0:01:47.7]} 16... cxd5 {[%clk
0:02:17.9]} 17. Bf3 {[%clk 0:01:39]} 17... Qb8 {[%clk 0:01:55.2]} 18. Qc2 {[%clk
0:01:20.1]} 18... e4 {[%clk 0:01:47.3]} 19. Be2 {[%clk 0:01:18.8]} 19... Qe5
{[%clk 0:01:41.7]} 20. Rd2 {[%clk 0:01:03.7]} 20... d4 {[%clk 0:01:29.3]} 21.
exd4 {[%clk 0:00:56.4]} 21... Rxd4 {[%clk 0:01:29.5]} 22. Rxd4 {[%clk
0:00:56.2]} 22... Qxd4 {[%clk 0:01:29.6]} 23. Rd1 {[%clk 0:00:55.6]} 23... Qe5
{[%clk 0:01:16.4]} 24. h3 {[%clk 0:00:44.2]} 24... e3 {[%clk 0:01:09]} 25. Bf3
{[%clk 0:00:35.1]} 25... Rc8 {[%clk 0:00:59.9]} 26. fxe3 {[%clk 0:00:31.3]}
26... Qxe3+ {[%clk 0:00:50.6]} 27. Qf2 {[%clk 0:00:31.9]} 27... Qg5 {[%clk
0:00:45.9]} 28. Rf1 {[%clk 0:00:24.7]} 28... a5 {[%clk 0:00:34.8]} 29. Ne4
{[%clk 0:00:23.8]} 29... Nxe4 {[%clk 0:00:19.5]} 30. Bxe4 {[%clk 0:00:23.3]}
30... h5 {[%clk 0:00:18.2]} 31. Bf5 {[%clk 0:00:17.5]} 31... Bxf5 {[%clk
0:00:15.6]} 32. Qxf5 {[%clk 0:00:17.3]} 32... Rc5 {[%clk 0:00:12.7]} 33. Qxf7+
{[%clk 0:00:15.3]} 33... Kh7 {[%clk 0:00:11.7]} 34. Qf2 {[%clk 0:00:11.5]} 34...
Rd5 {[%clk 0:00:10.1]} 35. Qf4 {[%clk 0:00:09.1]} 35... Qxf4 {[%clk 0:00:09.4]}
36. Rxf4 {[%clk 0:00:09.7]} 36... Rb5 {[%clk 0:00:08.8]} 37. Rf2 {[%clk
0:00:09.9]} 37... Kg6 {[%clk 0:00:08.4]} 38. Rc2 {[%clk 0:00:09.8]} 38... Kg5
{[%clk 0:00:07.7]} 39. Kf2 {[%clk 0:00:09.8]} 39... h4 {[%clk 0:00:07.5]} 40. g3
{[%clk 0:00:09.3]} 40... hxg3+ {[%clk 0:00:07.2]} 41. Kxg3 {[%clk 0:00:09.3]}
41... Kf5 {[%clk 0:00:07.8]} 42. h4 {[%clk 0:00:08.7]} 42... g6 {[%clk
0:00:07.4]} 43. Re2 {[%clk 0:00:08.4]} 43... Rc5 {[%clk 0:00:06.5]} 44. b3
{[%clk 0:00:07.9]} 44... Rd5 {[%clk 0:00:05.9]} 45. Rf2+ {[%clk 0:00:07.6]}
45... Ke5 {[%clk 0:00:05.9]} 46. Re2+ {[%clk 0:00:07.5]} 46... Kf5 {[%clk
0:00:06]} 47. Rf2+ {[%clk 0:00:07]} 47... Ke5 {[%clk 0:00:06.1]} 48. Re2+ {[%clk
0:00:07.6]} 48... Kf5 {[%clk 0:00:06]} 1/2-1/2

[Event "Late-Titled-Tuesday-Blitz-July-09-2024"]
[Site "Chess.com"]
[Date "2024.07.09"]
[Round "3"]
[White "tsvet2005"]
[Black "Robert_Oros"]
[Result "0-1"]
[WhiteElo "2665"]
[BlackElo "2321"]
[TimeControl "180+1"]
[EndTime "14:29:04 PDT"]
[Termination "Robert_Oros won by resignation"]

1. d4 {[%clk 0:03:00.9]} 1... e6 {[%clk 0:02:59.7]} 2. c4 {[%clk 0:02:58.8]}
2... Nf6 {[%clk 0:03:00]} 3. Nc3 {[%clk 0:02:58]} 3... Bb4 {[%clk 0:02:59.5]} 4.
e3 {[%clk 0:02:57.2]} 4... c5 {[%clk 0:02:59.2]} 5. Bd3 {[%clk 0:02:55.1]} 5...
d6 {[%clk 0:02:55.5]} 6. Ne2 {[%clk 0:02:54.6]} 6... Nc6 {[%clk 0:02:54.7]} 7.
a3 {[%clk 0:02:54.4]} 7... Ba5 {[%clk 0:02:52.2]} 8. O-O {[%clk 0:02:53.8]} 8...
e5 {[%clk 0:02:49.1]} 9. d5 {[%clk 0:02:34.4]} 9... Ne7 {[%clk 0:02:48.5]} 10.
f4 {[%clk 0:02:33]} 10... exf4 {[%clk 0:02:41.8]} 11. Nxf4 {[%clk 0:02:27.3]}
11... Bxc3 {[%clk 0:02:40.4]} 12. bxc3 {[%clk 0:02:28.2]} 12... O-O {[%clk
0:02:36.5]} 13. e4 {[%clk 0:02:08.9]} 13... Ng4 {[%clk 0:02:21.2]} 14. Be2
{[%clk 0:01:35.8]} 14... Ne5 {[%clk 0:02:18.7]} 15. Qb3 {[%clk 0:01:29.2]} 15...
Rb8 {[%clk 0:02:06.4]} 16. Nd3 {[%clk 0:01:28.8]} 16... N7g6 {[%clk 0:02:05]}
17. Nxe5 {[%clk 0:01:26.4]} 17... Nxe5 {[%clk 0:02:04.5]} 18. Bf4 {[%clk
0:01:25.6]} 18... Qe7 {[%clk 0:02:00.3]} 19. Rae1 {[%clk 0:01:15.8]} 19... b6
{[%clk 0:01:45.4]} 20. h3 {[%clk 0:01:12.8]} 20... Bd7 {[%clk 0:01:42.9]} 21.
Qd1 {[%clk 0:00:57.3]} 21... Rbe8 {[%clk 0:01:28.5]} 22. Rf2 {[%clk 0:00:37.9]}
22... Bc8 {[%clk 0:01:24.1]} 23. Ref1 {[%clk 0:00:36.7]} 23... Ba6 {[%clk
0:01:05.4]} 24. Qa4 {[%clk 0:00:35.8]} 24... Qb7 {[%clk 0:00:58]} 25. Bg3 {[%clk
0:00:27.2]} 25... Re7 {[%clk 0:00:54.4]} 26. Rf5 {[%clk 0:00:26.2]} 26... f6
{[%clk 0:00:49.2]} 27. Bxe5 {[%clk 0:00:23]} 27... Rxe5 {[%clk 0:00:47.4]} 28.
Rxe5 {[%clk 0:00:22.8]} 28... dxe5 {[%clk 0:00:38.6]} 29. Bg4 {[%clk 0:00:22.5]}
29... Rd8 {[%clk 0:00:33.9]} 30. Be6+ {[%clk 0:00:22.6]} 30... Kh8 {[%clk
0:00:29.4]} 31. Rd1 {[%clk 0:00:23.5]} 31... b5 {[%clk 0:00:21]} 32. cxb5 {[%clk
0:00:21.3]} 32... Qxb5 {[%clk 0:00:21]} 33. Qxb5 {[%clk 0:00:20.9]} 33... Bxb5
{[%clk 0:00:21.2]} 34. Rb1 {[%clk 0:00:19.6]} 34... Bd3 {[%clk 0:00:20.9]} 35.
Rb7 {[%clk 0:00:12.2]} 35... Bxe4 {[%clk 0:00:20.1]} 36. c4 {[%clk 0:00:12.5]}
36... g6 {[%clk 0:00:11.9]} 37. Rc7 {[%clk 0:00:12.1]} 37... Bd3 {[%clk
0:00:08.3]} 38. Rxc5 {[%clk 0:00:12.3]} 38... e4 {[%clk 0:00:07.8]} 39. Kf2
{[%clk 0:00:10.5]} 39... f5 {[%clk 0:00:07.2]} 40. Ke3 {[%clk 0:00:09.8]} 40...
Kg7 {[%clk 0:00:07.1]} 41. Rc7+ {[%clk 0:00:09.7]} 41... Kf6 {[%clk 0:00:07.1]}
42. c5 {[%clk 0:00:09.9]} 42... Bc4 {[%clk 0:00:04.2]} 43. Rf7+ {[%clk
0:00:03.8]} 43... Ke5 {[%clk 0:00:03.8]} 44. Rxh7 {[%clk 0:00:03.8]} 44... f4+
{[%clk 0:00:02.8]} 45. Kf2 {[%clk 0:00:02.9]} 45... Bxd5 {[%clk 0:00:02.4]} 46.
Bxd5 {[%clk 0:00:03]} 46... Rxd5 {[%clk 0:00:02.6]} 47. Rxa7 {[%clk 0:00:02.9]}
47... Rxc5 {[%clk 0:00:02.3]} 48. a4 {[%clk 0:00:03.3]} 48... Rc2+ {[%clk
0:00:02.7]} 0-1

[Event "Late-Titled-Tuesday-Blitz-July-09-2024"]
[Site "Chess.com"]
[Date "2024.07.09"]
[Round "3"]
[White "JoshWeinstein"]
[Black "dawid498"]
[Result "0-1"]
[WhiteElo "2451"]
[BlackElo "2673"]
[TimeControl "180+1"]
[EndTime "14:29:07 PDT"]
[Termination "dawid498 won by resignation"]

1. e4 {[%clk 0:03:00.9]} 1... c5 {[%clk 0:02:59.8]} 2. Nc3 {[%clk 0:03:01.2]}
2... Nc6 {[%clk 0:02:59.7]} 3. Bc4 {[%clk 0:03:01.7]} 3... g6 {[%clk 0:02:55.8]}
4. f4 {[%clk 0:03:01.4]} 4... Bg7 {[%clk 0:02:55.2]} 5. Nf3 {[%clk 0:03:02.1]}
5... e6 {[%clk 0:02:53.3]} 6. d3 {[%clk 0:03:01.8]} 6... Nge7 {[%clk 0:02:53.6]}
7. Bb3 {[%clk 0:03:02.3]} 7... d5 {[%clk 0:02:50.2]} 8. e5 {[%clk 0:03:00.1]}
8... O-O {[%clk 0:02:47.4]} 9. a3 {[%clk 0:02:58.6]} 9... Rb8 {[%clk 0:02:33.9]}
10. O-O {[%clk 0:02:58.3]} 10... b5 {[%clk 0:02:34.2]} 11. Ne2 {[%clk 0:02:53]}
11... Nf5 {[%clk 0:02:04.6]} 12. c3 {[%clk 0:02:50]} 12... d4 {[%clk 0:01:45.8]}
13. Bc2 {[%clk 0:02:27.5]} 13... Qb6 {[%clk 0:01:31.1]} 14. g4 {[%clk
0:02:24.4]} 14... Ne3 {[%clk 0:01:23]} 15. Bxe3 {[%clk 0:02:24]} 15... dxe3
{[%clk 0:01:23.9]} 16. d4 {[%clk 0:02:23.2]} 16... cxd4 {[%clk 0:01:17.7]} 17.
Nexd4 {[%clk 0:02:18.1]} 17... Bb7 {[%clk 0:01:12.7]} 18. Qe2 {[%clk 0:02:13.7]}
18... Nxd4 {[%clk 0:01:11.8]} 19. cxd4 {[%clk 0:02:13]} 19... Bxf3 {[%clk
0:01:11]} 20. Rxf3 {[%clk 0:02:08.8]} 20... Qxd4 {[%clk 0:01:11.6]} 21. Bb3
{[%clk 0:01:51.1]} 21... Rbc8 {[%clk 0:00:52.3]} 22. Rd1 {[%clk 0:01:51]} 22...
Qb6 {[%clk 0:00:39.8]} 23. Qxe3 {[%clk 0:01:50.1]} 23... Qc7 {[%clk 0:00:36.2]}
24. Rf2 {[%clk 0:01:36.2]} 24... Rfd8 {[%clk 0:00:35.5]} 25. Rfd2 {[%clk
0:01:33.6]} 25... Rxd2 {[%clk 0:00:35.4]} 26. Qxd2 {[%clk 0:01:32.4]} 26... g5
{[%clk 0:00:29.4]} 27. f5 {[%clk 0:01:13.9]} 27... Qxe5 {[%clk 0:00:29.2]} 28.
Qxg5 {[%clk 0:01:11.2]} 28... h6 {[%clk 0:00:18.8]} 29. Qd2 {[%clk 0:00:45.2]}
29... Qe4 {[%clk 0:00:16.7]} 30. fxe6 {[%clk 0:00:39.2]} 30... Qxg4+ {[%clk
0:00:15.6]} 31. Qg2 {[%clk 0:00:39.4]} 31... Qxg2+ {[%clk 0:00:04.5]} 32. Kxg2
{[%clk 0:00:40.3]} 32... Kf8 {[%clk 0:00:04.4]} 33. exf7 {[%clk 0:00:36.7]}
33... Bxb2 {[%clk 0:00:05]} 34. Be6 {[%clk 0:00:33.8]} 34... Rb8 {[%clk
0:00:04.7]} 35. Rd2 {[%clk 0:00:31.6]} 35... Bxa3 {[%clk 0:00:04.5]} 36. Rc2
{[%clk 0:00:29.9]} 36... Bd6 {[%clk 0:00:03.6]} 37. Rc6 {[%clk 0:00:29.7]} 37...
Ke7 {[%clk 0:00:03.7]} 38. Bd5 {[%clk 0:00:24.9]} 38... b4 {[%clk 0:00:03.9]}
39. Ra6 {[%clk 0:00:23.6]} 39... Bc5 {[%clk 0:00:03.7]} 40. Rc6 {[%clk 0:00:19]}
40... Bd6 {[%clk 0:00:03]} 41. Ra6 {[%clk 0:00:19]} 41... b3 {[%clk 0:00:03.6]}
42. Rxa7+ {[%clk 0:00:16]} 42... Kf8 {[%clk 0:00:04.2]} 43. Ra1 {[%clk
0:00:15.4]} 43... b2 {[%clk 0:00:04.5]} 44. Rb1 {[%clk 0:00:16]} 44... Rb5
{[%clk 0:00:04.6]} 45. Bc4 {[%clk 0:00:16.1]} 45... Rb4 {[%clk 0:00:04.6]} 46.
Ba2 {[%clk 0:00:16.1]} 46... Be5 {[%clk 0:00:04.7]} 47. Kf3 {[%clk 0:00:16.2]}
47... Rf4+ {[%clk 0:00:04.7]} 48. Ke3 {[%clk 0:00:16.3]} 48... Ra4 {[%clk
0:00:05.6]} 49. Bb3 {[%clk 0:00:16.1]} 49... Ra3 {[%clk 0:00:05.1]} 50. Ke4
{[%clk 0:00:15]} 50... Rxb3 {[%clk 0:00:04.5]} 51. Kxe5 {[%clk 0:00:14.8]} 51...
Kxf7 {[%clk 0:00:05.4]} 52. Kd4 {[%clk 0:00:14.6]} 52... Kg6 {[%clk 0:00:05.6]}
53. Kc4 {[%clk 0:00:15.3]} 53... Rb8 {[%clk 0:00:05.7]} 54. Kc3 {[%clk
0:00:15.7]} 54... Kg5 {[%clk 0:00:05.3]} 55. Rxb2 {[%clk 0:00:15.4]} 55... Rxb2
{[%clk 0:00:05.7]} 56. Kxb2 {[%clk 0:00:16.3]} 56... Kg4 {[%clk 0:00:06.6]} 57.
Kc2 {[%clk 0:00:17.1]} 57... Kh3 {[%clk 0:00:07.5]} 58. Kd2 {[%clk 0:00:17.9]}
58... Kxh2 {[%clk 0:00:08.4]} 59. Ke3 {[%clk 0:00:18]} 59... Kg3 {[%clk
0:00:08.9]} 60. Ke2 {[%clk 0:00:17.4]} 60... Kg2 {[%clk 0:00:09.4]} 61. Ke3
{[%clk 0:00:18.1]} 61... h5 {[%clk 0:00:10]} 62. Kf4 {[%clk 0:00:18.9]} 62... h4
{[%clk 0:00:09.9]} 63. Kg4 {[%clk 0:00:19.8]} 63... h3 {[%clk 0:00:10.8]} 0-1